[Event "*** SCC Grand Prix: Titled Tuesday Blitz"]
[Site "Chess.com"]
[Date "2020.09.08"]
[Round "5"]
[White "Parhamov"]
[Black "Yashasd1995"]
[Result "1-0"]
[WhiteElo "2993"]
[BlackElo "2674"]
[TimeControl "180+1"]
[EndTime "10:56:13 PDT"]
[Termination "Parhamov won by resignation"]

1. c4 {[%clk 0:02:57.7]} 1... Nf6 {[%clk 0:02:57.9]} 2. Nf3 {[%clk 0:02:49.7]}
2... e6 {[%clk 0:02:54.7]} 3. g3 {[%clk 0:02:48.3]} 3... d5 {[%clk 0:02:53.9]}
4. Bg2 {[%clk 0:02:48.8]} 4... Be7 {[%clk 0:02:53.1]} 5. O-O {[%clk 0:02:48.9]}
5... O-O {[%clk 0:02:53.7]} 6. d4 {[%clk 0:02:49]} 6... Nbd7 {[%clk 0:02:51.2]}
7. Qc2 {[%clk 0:02:44.3]} 7... c6 {[%clk 0:02:51]} 8. Rd1 {[%clk 0:02:42.9]}
8... b6 {[%clk 0:02:50.1]} 9. b3 {[%clk 0:02:43.1]} 9... a5 {[%clk 0:02:49.3]}
10. Bb2 {[%clk 0:02:41.8]} 10... Ba6 {[%clk 0:02:48.8]} 11. Nbd2 {[%clk
0:02:40.6]} 11... Rc8 {[%clk 0:02:47]} 12. e4 {[%clk 0:02:40.7]} 12... c5 {[%clk
0:02:45.9]} 13. e5 {[%clk 0:02:41]} 13... Ne8 {[%clk 0:02:44.5]} 14. cxd5 {[%clk
0:02:41.1]} 14... exd5 {[%clk 0:02:44.4]} 15. Qf5 {[%clk 0:02:39.2]} 15... Nc7
{[%clk 0:02:41.6]} 16. h4 {[%clk 0:02:37]} 16... h6 {[%clk 0:02:38.5]} 17. Rac1
{[%clk 0:02:33.6]} 17... Ne6 {[%clk 0:02:34.2]} 18. dxc5 {[%clk 0:02:19.2]}
18... bxc5 {[%clk 0:02:27.8]} 19. Nf1 {[%clk 0:02:18.7]} 19... d4 {[%clk
0:02:24.8]} 20. N1h2 {[%clk 0:02:13.2]} 20... Re8 {[%clk 0:02:00.3]} 21. Ng4
{[%clk 0:02:13]} 21... Bf8 {[%clk 0:01:59.7]} 22. h5 {[%clk 0:02:02.5]} 22...
Rc7 {[%clk 0:01:47.1]} 23. Nd2 {[%clk 0:02:00.4]} 23... Be2 {[%clk 0:01:39.5]}
24. Be4 {[%clk 0:01:57]} 24... Ng5 {[%clk 0:01:36.5]} 25. f4 {[%clk 0:01:48.7]}
25... Nxe4 {[%clk 0:01:30.3]} 26. Nxe4 {[%clk 0:01:48.6]} 26... Bxd1 {[%clk
0:01:30]} 27. Rxd1 {[%clk 0:01:48.7]} 27... Re6 {[%clk 0:01:26]} 28. Kh2 {[%clk
0:01:37.2]} 28... Qb8 {[%clk 0:01:21.6]} 29. Nd2 {[%clk 0:01:32.9]} 29... a4
{[%clk 0:01:15.1]} 30. Bc1 {[%clk 0:01:23.8]} 30... axb3 {[%clk 0:01:14.5]} 31.
axb3 {[%clk 0:01:24.7]} 31... Qa8 {[%clk 0:01:13.4]} 32. Qd3 {[%clk 0:01:23.5]}
32... Qa6 {[%clk 0:01:10.1]} 33. Nc4 {[%clk 0:01:23.4]} 33... Nb6 {[%clk
0:00:38.3]} 34. f5 {[%clk 0:01:23.5]} 34... Re8 {[%clk 0:00:37.8]} 35. e6 {[%clk
0:01:06.9]} 35... Nxc4 {[%clk 0:00:35.6]} 36. bxc4 {[%clk 0:01:06.8]} 36... fxe6
{[%clk 0:00:32.9]} 37. f6 {[%clk 0:01:06.5]} 37... Rb8 {[%clk 0:00:16.4]} 38.
Rf1 {[%clk 0:00:56.6]} 38... Qa2+ {[%clk 0:00:15.8]} 39. Kh3 {[%clk 0:00:55.5]}
39... Qb1 {[%clk 0:00:16.1]} 40. Qe2 {[%clk 0:00:50.5]} 40... Re8 {[%clk
0:00:15.6]} 41. Bf4 {[%clk 0:00:43.5]} 41... Rf7 {[%clk 0:00:15.4]} 42. Rxb1
{[%clk 0:00:42.9]} 1-0

[Event "*** SCC Grand Prix: Titled Tuesday Blitz"]
[Site "Chess.com"]
[Date "2020.09.08"]
[Round "5"]
[White "rpragchess"]
[Black "davidkalashian"]
[Result "1-0"]
[WhiteElo "2839"]
[BlackElo "2601"]
[TimeControl "180+1"]
[EndTime "10:56:13 PDT"]
[Termination "rpragchess won on time"]

1. d4 {[%clk 0:03:00.9]} 1... Nf6 {[%clk 0:02:58.7]} 2. c4 {[%clk 0:03:01.1]}
2... e6 {[%clk 0:02:57.9]} 3. Nf3 {[%clk 0:03:00.1]} 3... b6 {[%clk 0:02:57.4]}
4. a3 {[%clk 0:02:55.9]} 4... Ba6 {[%clk 0:02:56.7]} 5. Qc2 {[%clk 0:02:52.3]}
5... Bb7 {[%clk 0:02:56.4]} 6. Nbd2 {[%clk 0:02:43.1]} 6... c5 {[%clk
0:02:49.3]} 7. dxc5 {[%clk 0:02:43.3]} 7... Bxc5 {[%clk 0:02:44.7]} 8. b4 {[%clk
0:02:38.7]} 8... Be7 {[%clk 0:02:44.2]} 9. Bb2 {[%clk 0:02:39.2]} 9... O-O
{[%clk 0:02:43.2]} 10. e4 {[%clk 0:02:39.2]} 10... d6 {[%clk 0:02:43.3]} 11. Bd3
{[%clk 0:02:39]} 11... Nbd7 {[%clk 0:02:42.7]} 12. O-O {[%clk 0:02:38.9]} 12...
Qc7 {[%clk 0:02:41.6]} 13. Rac1 {[%clk 0:02:38]} 13... a6 {[%clk 0:02:41]} 14.
Qb1 {[%clk 0:02:38.3]} 14... Rac8 {[%clk 0:02:36.5]} 15. Rfe1 {[%clk 0:02:37.9]}
15... Rfd8 {[%clk 0:02:31.1]} 16. e5 {[%clk 0:02:17.1]} 16... dxe5 {[%clk
0:02:12.3]} 17. Nxe5 {[%clk 0:02:18]} 17... Nxe5 {[%clk 0:01:41.1]} 18. Bxe5
{[%clk 0:02:16.7]} 18... Qc6 {[%clk 0:01:39.3]} 19. Nf3 {[%clk 0:02:07.4]} 19...
h6 {[%clk 0:01:35]} 20. Rcd1 {[%clk 0:01:50.2]} 20... Qa4 {[%clk 0:01:29.2]} 21.
Qb2 {[%clk 0:01:35.5]} 21... Bxf3 {[%clk 0:00:48.8]} 22. gxf3 {[%clk 0:01:36.4]}
22... Qc6 {[%clk 0:00:47]} 23. Be2 {[%clk 0:00:55.8]} 23... Nh5 {[%clk
0:00:38.3]} 24. f4 {[%clk 0:00:53.5]} 24... Nf6 {[%clk 0:00:34.7]} 25. Qc3
{[%clk 0:00:51.3]} 25... Ne8 {[%clk 0:00:23.7]} 26. Rxd8 {[%clk 0:00:45.6]}
26... Rxd8 {[%clk 0:00:21.3]} 27. Bf3 {[%clk 0:00:45.6]} 27... Qa4 {[%clk
0:00:18.7]} 28. c5 {[%clk 0:00:44.7]} 28... bxc5 {[%clk 0:00:18.1]} 29. bxc5
{[%clk 0:00:45.6]} 29... Qb5 {[%clk 0:00:12.6]} 30. c6 {[%clk 0:00:44.7]} 30...
Rd3 {[%clk 0:00:11.6]} 31. Be2 {[%clk 0:00:36.3]} 31... Rxc3 {[%clk 0:00:06]}
32. Bxb5 {[%clk 0:00:35.8]} 1-0

[Event "*** SCC Grand Prix: Titled Tuesday Blitz"]
[Site "Chess.com"]
[Date "2020.09.08"]
[Round "5"]
[White "Snowflake"]
[Black "fabianvivasz"]
[Result "0-1"]
[WhiteElo "2477"]
[BlackElo "2320"]
[TimeControl "180+1"]
[EndTime "10:56:14 PDT"]
[Termination "fabianvivasz won on time"]

1. d4 {[%clk 0:03:00.9]} 1... Nf6 {[%clk 0:02:59.7]} 2. c4 {[%clk 0:02:59.6]}
2... g6 {[%clk 0:02:58]} 3. Nc3 {[%clk 0:02:59.3]} 3... d5 {[%clk 0:02:58.6]} 4.
cxd5 {[%clk 0:03:00.2]} 4... Nxd5 {[%clk 0:02:59.4]} 5. e4 {[%clk 0:03:00.4]}
5... Nxc3 {[%clk 0:03:00]} 6. bxc3 {[%clk 0:03:01.3]} 6... Bg7 {[%clk
0:03:00.6]} 7. Bb5+ {[%clk 0:02:57.6]} 7... c6 {[%clk 0:03:00.3]} 8. Ba4 {[%clk
0:02:57.6]} 8... O-O {[%clk 0:02:56.4]} 9. Ne2 {[%clk 0:02:56.6]} 9... b5 {[%clk
0:02:45.1]} 10. Bb3 {[%clk 0:02:51]} 10... c5 {[%clk 0:02:45.2]} 11. O-O {[%clk
0:02:43.6]} 11... Bb7 {[%clk 0:02:43.3]} 12. f3 {[%clk 0:02:35.2]} 12... Nc6
{[%clk 0:02:25.4]} 13. Be3 {[%clk 0:02:34.8]} 13... Qc7 {[%clk 0:01:55.7]} 14.
Qc1 {[%clk 0:01:56.1]} 14... Rac8 {[%clk 0:01:22.3]} 15. Rd1 {[%clk 0:01:42.2]}
15... Rfd8 {[%clk 0:01:13.2]} 16. Qa3 {[%clk 0:01:30.7]} 16... b4 {[%clk
0:01:04.8]} 17. cxb4 {[%clk 0:01:30.4]} 17... cxd4 {[%clk 0:01:04.6]} 18. Bf4
{[%clk 0:01:18.3]} 18... Qb6 {[%clk 0:01:00.1]} 19. Kh1 {[%clk 0:00:39.7]} 19...
d3 {[%clk 0:00:59]} 20. Ng3 {[%clk 0:00:28.7]} 20... Bxa1 {[%clk 0:00:52.3]} 21.
Rxa1 {[%clk 0:00:29.6]} 21... Qxb4 {[%clk 0:00:37.9]} 22. Qb2 {[%clk 0:00:28.9]}
22... Qd4 {[%clk 0:00:37.6]} 23. Qc1 {[%clk 0:00:22.4]} 23... d2 {[%clk
0:00:31.4]} 24. Qd1 {[%clk 0:00:22.2]} 24... Nb4 {[%clk 0:00:23.4]} 25. Nf1
{[%clk 0:00:21.2]} 25... Nd3 {[%clk 0:00:16.3]} 26. Bg3 {[%clk 0:00:07.6]} 26...
Qxa1 {[%clk 0:00:14.6]} 27. Qxa1 {[%clk 0:00:05.3]} 27... Rc1 {[%clk 0:00:14.7]}
0-1

[Event "*** SCC Grand Prix: Titled Tuesday Blitz"]
[Site "Chess.com"]
[Date "2020.09.08"]
[Round "5"]
[White "Legendinunknown"]
[Black "juancruzarias"]
[Result "0-1"]
[WhiteElo "2614"]
[BlackElo "2457"]
[TimeControl "180+1"]
[EndTime "10:56:15 PDT"]
[Termination "juancruzarias won by resignation"]

1. d4 {[%clk 0:02:59.9]} 1... Nf6 {[%clk 0:02:59.7]} 2. c4 {[%clk 0:02:57.9]}
2... c5 {[%clk 0:02:59.9]} 3. d5 {[%clk 0:02:56.7]} 3... e5 {[%clk 0:02:59.6]}
4. Nc3 {[%clk 0:02:56]} 4... d6 {[%clk 0:03:00]} 5. e4 {[%clk 0:02:56.2]} 5...
Nbd7 {[%clk 0:03:00.4]} 6. Bd3 {[%clk 0:02:55.4]} 6... Be7 {[%clk 0:03:00.7]} 7.
Nge2 {[%clk 0:02:54.3]} 7... Nf8 {[%clk 0:03:01.1]} 8. O-O {[%clk 0:02:50.8]}
8... Ng6 {[%clk 0:03:01.5]} 9. f3 {[%clk 0:02:43.1]} 9... O-O {[%clk 0:03:00.9]}
10. Be3 {[%clk 0:02:38.7]} 10... Nd7 {[%clk 0:03:01.1]} 11. Qd2 {[%clk
0:02:36.6]} 11... h6 {[%clk 0:03:01.1]} 12. g3 {[%clk 0:02:36.1]} 12... Rb8
{[%clk 0:02:44.5]} 13. f4 {[%clk 0:02:23.4]} 13... exf4 {[%clk 0:02:45.4]} 14.
gxf4 {[%clk 0:02:23.5]} 14... a6 {[%clk 0:02:43.8]} 15. a4 {[%clk 0:02:19.7]}
15... Nf6 {[%clk 0:02:38.4]} 16. Ng3 {[%clk 0:01:57.8]} 16... Ng4 {[%clk
0:02:36.1]} 17. Kh1 {[%clk 0:01:45.2]} 17... Bf6 {[%clk 0:02:32.4]} 18. Rae1
{[%clk 0:01:35.3]} 18... Bd7 {[%clk 0:02:29.6]} 19. Bg1 {[%clk 0:01:27.9]} 19...
Bd4 {[%clk 0:02:20.5]} 20. Bxd4 {[%clk 0:01:12.6]} 20... cxd4 {[%clk 0:02:21.4]}
21. Nd1 {[%clk 0:01:13.1]} 21... Bxa4 {[%clk 0:02:18.4]} 22. Bc2 {[%clk
0:00:55.6]} 22... Bxc2 {[%clk 0:02:15.2]} 23. Qxc2 {[%clk 0:00:56.1]} 23... b5
{[%clk 0:02:11.6]} 24. h3 {[%clk 0:00:46.6]} 24... Ne3 {[%clk 0:02:06.3]} 25.
Nxe3 {[%clk 0:00:43.5]} 25... dxe3 {[%clk 0:02:07.2]} 26. Nf5 {[%clk 0:00:23.6]}
26... bxc4 {[%clk 0:02:06.6]} 27. Rxe3 {[%clk 0:00:23.2]} 27... Re8 {[%clk
0:01:58.8]} 28. Rf2 {[%clk 0:00:19.8]} 28... Qf6 {[%clk 0:01:46.4]} 29. Rg3
{[%clk 0:00:18.8]} 29... Rb3 {[%clk 0:01:37.4]} 30. Rfg2 {[%clk 0:00:12.9]}
30... Reb8 {[%clk 0:01:29.8]} 31. Rxb3 {[%clk 0:00:11.4]} 31... Rxb3 {[%clk
0:01:26.8]} 32. e5 {[%clk 0:00:08.6]} 32... Rxh3+ {[%clk 0:01:20.3]} 33. Kg1
{[%clk 0:00:08.1]} 33... dxe5 {[%clk 0:01:20.4]} 34. d6 {[%clk 0:00:08.2]} 34...
Rd3 {[%clk 0:01:17]} 35. Qxc4 {[%clk 0:00:07.4]} 35... Qxf5 {[%clk 0:01:15.5]}
36. fxe5 {[%clk 0:00:02.5]} 36... Rd1+ {[%clk 0:01:14.8]} 37. Kh2 {[%clk
0:00:02.9]} 37... Qf4+ {[%clk 0:01:11.9]} 38. Qxf4 {[%clk 0:00:01.2]} 38... Nxf4
{[%clk 0:01:12.8]} 39. Rc2 {[%clk 0:00:01.5]} 39... Ne6 {[%clk 0:01:12.6]} 40.
Kg3 {[%clk 0:00:02.4]} 40... Rd4 {[%clk 0:01:12]} 41. Kf3 {[%clk 0:00:03.3]}
41... Kh7 {[%clk 0:01:11.9]} 42. Rc8 {[%clk 0:00:04.2]} 42... Kg6 {[%clk
0:01:12]} 43. Ra8 {[%clk 0:00:05.1]} 43... Kf5 {[%clk 0:01:11.7]} 44. Ra7 {[%clk
0:00:05.8]} 44... Kxe5 {[%clk 0:01:07]} 45. Rxf7 {[%clk 0:00:05.6]} 45... Rf4+
{[%clk 0:01:06.8]} 46. Rxf4 {[%clk 0:00:04.4]} 46... Nxf4 {[%clk 0:01:07.7]} 47.
d7 {[%clk 0:00:05.3]} 47... Ne6 {[%clk 0:01:08.6]} 48. Kg4 {[%clk 0:00:06]}
48... g6 {[%clk 0:01:08.7]} 0-1

[Event "*** SCC Grand Prix: Titled Tuesday Blitz"]
[Site "Chess.com"]
[Date "2020.09.08"]
[Round "5"]
[White "albi1999"]
[Black "fireheart92"]
[Result "1-0"]
[WhiteElo "2635"]
[BlackElo "2849"]
[TimeControl "180+1"]
[EndTime "10:56:16 PDT"]
[Termination "albi1999 won on time"]

1. d4 {[%clk 0:03:00.9]} 1... Nf6 {[%clk 0:02:59.5]} 2. c4 {[%clk 0:02:59.3]}
2... g6 {[%clk 0:02:59.3]} 3. g3 {[%clk 0:02:58.5]} 3... Bg7 {[%clk 0:02:59.2]}
4. Bg2 {[%clk 0:02:58]} 4... O-O {[%clk 0:02:59.1]} 5. Nc3 {[%clk 0:02:57.5]}
5... d6 {[%clk 0:02:59.3]} 6. Nf3 {[%clk 0:02:58.1]} 6... Nbd7 {[%clk
0:02:59.4]} 7. O-O {[%clk 0:02:58.5]} 7... e5 {[%clk 0:02:59.5]} 8. e4 {[%clk
0:02:58.3]} 8... c6 {[%clk 0:02:59.3]} 9. Be3 {[%clk 0:02:57.9]} 9... Ng4 {[%clk
0:02:55.1]} 10. Bg5 {[%clk 0:02:58.2]} 10... f6 {[%clk 0:02:55.3]} 11. Bd2
{[%clk 0:02:56.1]} 11... a6 {[%clk 0:02:29.2]} 12. h3 {[%clk 0:02:53]} 12... Nh6
{[%clk 0:02:29.3]} 13. Be3 {[%clk 0:02:27]} 13... Nf7 {[%clk 0:02:26.6]} 14. a4
{[%clk 0:02:16.6]} 14... a5 {[%clk 0:02:24]} 15. Qc2 {[%clk 0:02:16]} 15... f5
{[%clk 0:02:22.6]} 16. exf5 {[%clk 0:02:05.5]} 16... gxf5 {[%clk 0:02:22.4]} 17.
dxe5 {[%clk 0:01:42.4]} 17... Ndxe5 {[%clk 0:02:20.7]} 18. Nxe5 {[%clk
0:01:31.8]} 18... Nxe5 {[%clk 0:01:58.7]} 19. b3 {[%clk 0:01:28.4]} 19... f4
{[%clk 0:01:57.9]} 20. Bxf4 {[%clk 0:01:21.7]} 20... Rxf4 {[%clk 0:01:57.7]} 21.
gxf4 {[%clk 0:01:22.6]} 21... Ng6 {[%clk 0:01:56.6]} 22. Ne2 {[%clk 0:01:19.7]}
22... Bxa1 {[%clk 0:01:52.2]} 23. Rxa1 {[%clk 0:01:20.6]} 23... Qf6 {[%clk
0:01:50]} 24. Rd1 {[%clk 0:01:18]} 24... Nh4 {[%clk 0:01:43.2]} 25. Qc3 {[%clk
0:01:13.9]} 25... Qg6 {[%clk 0:01:27.3]} 26. Qg3 {[%clk 0:01:11.5]} 26... Bf5
{[%clk 0:01:07.9]} 27. Qxh4 {[%clk 0:01:01.5]} 27... Re8 {[%clk 0:00:51.3]} 28.
Ng3 {[%clk 0:00:59.1]} 28... Bc2 {[%clk 0:00:49.4]} 29. f5 {[%clk 0:00:50]}
29... Qg7 {[%clk 0:00:47.2]} 30. Rxd6 {[%clk 0:00:45.5]} 30... Bxb3 {[%clk
0:00:42]} 31. f6 {[%clk 0:00:38.2]} 31... Qg6 {[%clk 0:00:42]} 32. Be4 {[%clk
0:00:36.2]} 32... Qf7 {[%clk 0:00:39.9]} 33. Qg4+ {[%clk 0:00:31.3]} 33... Kh8
{[%clk 0:00:39.1]} 34. Rd7 {[%clk 0:00:31.7]} 1-0

[Event "*** SCC Grand Prix: Titled Tuesday Blitz"]
[Site "Chess.com"]
[Date "2020.09.08"]
[Round "5"]
[White "zaur-mammadov"]
[Black "Butterfly"]
[Result "0-1"]
[WhiteElo "2638"]
[BlackElo "2501"]
[TimeControl "180+1"]
[EndTime "10:56:17 PDT"]
[Termination "Butterfly won by resignation"]

1. e4 {[%clk 0:03:00.9]} 1... c6 {[%clk 0:02:59.5]} 2. Nc3 {[%clk 0:02:58.8]}
2... d5 {[%clk 0:02:59.8]} 3. Nf3 {[%clk 0:02:59.6]} 3... dxe4 {[%clk
0:02:59.6]} 4. Nxe4 {[%clk 0:03:00.4]} 4... Nf6 {[%clk 0:02:59.9]} 5. Qe2 {[%clk
0:03:01]} 5... Nxe4 {[%clk 0:02:57.8]} 6. Qxe4 {[%clk 0:03:01.9]} 6... Qd5
{[%clk 0:02:57.3]} 7. Qf4 {[%clk 0:03:02.1]} 7... Qf5 {[%clk 0:02:50.8]} 8. Qe3
{[%clk 0:03:02]} 8... g6 {[%clk 0:02:47.4]} 9. Qc3 {[%clk 0:02:46.4]} 9... Qf6
{[%clk 0:02:39.9]} 10. Qxf6 {[%clk 0:02:45.4]} 10... exf6 {[%clk 0:02:40.5]} 11.
Bc4 {[%clk 0:02:45.2]} 11... Bg7 {[%clk 0:02:34]} 12. O-O {[%clk 0:02:45.3]}
12... O-O {[%clk 0:02:33.8]} 13. h3 {[%clk 0:02:45.9]} 13... Be6 {[%clk
0:02:23.3]} 14. Bxe6 {[%clk 0:02:41.1]} 14... fxe6 {[%clk 0:02:23.5]} 15. Re1
{[%clk 0:02:42]} 15... e5 {[%clk 0:02:23.3]} 16. d3 {[%clk 0:02:42.7]} 16... Nd7
{[%clk 0:02:21.8]} 17. Be3 {[%clk 0:02:41.9]} 17... Rfe8 {[%clk 0:02:19]} 18.
Rad1 {[%clk 0:02:41.3]} 18... c5 {[%clk 0:02:16.5]} 19. Nd2 {[%clk 0:02:40]}
19... b6 {[%clk 0:02:12.3]} 20. f3 {[%clk 0:02:38.8]} 20... Nb8 {[%clk
0:02:10.9]} 21. a4 {[%clk 0:02:32.8]} 21... Nc6 {[%clk 0:02:11.3]} 22. c3 {[%clk
0:02:33.4]} 22... Rad8 {[%clk 0:02:11.1]} 23. Nc4 {[%clk 0:02:33.9]} 23... Rd7
{[%clk 0:02:10.5]} 24. Kf2 {[%clk 0:02:34.4]} 24... Red8 {[%clk 0:02:10.6]} 25.
Ke2 {[%clk 0:02:35]} 25... Kf7 {[%clk 0:02:09.8]} 26. g4 {[%clk 0:02:35.5]}
26... Ne7 {[%clk 0:02:06.8]} 27. h4 {[%clk 0:02:33.2]} 27... Nd5 {[%clk
0:02:07.2]} 28. Bc1 {[%clk 0:02:33.8]} 28... a6 {[%clk 0:01:49.7]} 29. Rh1
{[%clk 0:02:28.2]} 29... b5 {[%clk 0:01:48.3]} 30. axb5 {[%clk 0:02:28.5]} 30...
axb5 {[%clk 0:01:49.1]} 31. Ne3 {[%clk 0:02:25.5]} 31... Nf4+ {[%clk 0:01:47.8]}
32. Kf2 {[%clk 0:02:23.6]} 32... Nxd3+ {[%clk 0:01:47.1]} 33. Kg3 {[%clk
0:02:23.7]} 33... Nxc1 {[%clk 0:01:45.9]} 34. Rxc1 {[%clk 0:02:19.9]} 34... Rd2
{[%clk 0:01:45.8]} 35. Ra1 {[%clk 0:02:15.4]} 35... R8d7 {[%clk 0:01:38.1]} 36.
b4 {[%clk 0:02:09.9]} 36... cxb4 {[%clk 0:01:35]} 37. cxb4 {[%clk 0:02:10.8]}
37... Bh6 {[%clk 0:01:34.6]} 38. g5 {[%clk 0:02:11]} 38... fxg5 {[%clk
0:01:32.3]} 39. Ng4 {[%clk 0:02:11.5]} 39... gxh4+ {[%clk 0:01:31]} 40. Kxh4
{[%clk 0:01:50.4]} 40... Bf4 {[%clk 0:01:29.9]} 41. Rae1 {[%clk 0:01:48.6]}
41... Ke6 {[%clk 0:01:26.7]} 42. Ra1 {[%clk 0:01:27.9]} 42... h5 {[%clk
0:01:23.1]} 43. Ra6+ {[%clk 0:01:27.2]} 43... R7d6 {[%clk 0:01:23]} 44. Rxd6+
{[%clk 0:01:27.2]} 44... Rxd6 {[%clk 0:01:16.6]} 45. Nf2 {[%clk 0:01:27.1]}
45... Rd4 {[%clk 0:01:16.2]} 46. Ne4 {[%clk 0:01:23.3]} 46... Rxb4 {[%clk
0:01:15.2]} 47. Rg1 {[%clk 0:01:23.3]} 47... Kf7 {[%clk 0:01:01.7]} 48. Nd6+
{[%clk 0:01:21.7]} 48... Kg7 {[%clk 0:00:58.7]} 49. Ra1 {[%clk 0:00:50.7]} 49...
Rb2 {[%clk 0:00:49.5]} 50. Ra7+ {[%clk 0:00:42.9]} 50... Kf8 {[%clk 0:00:48.4]}
51. Ra8+ {[%clk 0:00:36.1]} 51... Ke7 {[%clk 0:00:48.6]} 52. Nc8+ {[%clk
0:00:36.7]} 52... Kd7 {[%clk 0:00:43.3]} 53. Nb6+ {[%clk 0:00:35.5]} 53... Kc6
{[%clk 0:00:43.5]} 0-1

[Event "*** SCC Grand Prix: Titled Tuesday Blitz"]
[Site "Chess.com"]
[Date "2020.09.08"]
[Round "5"]
[White "ENajer77"]
[Black "VerdeNotte"]
[Result "0-1"]
[WhiteElo "2605"]
[BlackElo "2850"]
[TimeControl "180+1"]
[EndTime "10:56:19 PDT"]
[Termination "VerdeNotte won on time"]

1. d4 {[%clk 0:02:59.9]} 1... Nf6 {[%clk 0:02:58.8]} 2. Nc3 {[%clk 0:02:57.1]}
2... d5 {[%clk 0:02:58.5]} 3. Bf4 {[%clk 0:02:57.7]} 3... g6 {[%clk 0:02:57.2]}
4. Qd2 {[%clk 0:02:54.5]} 4... Bg7 {[%clk 0:02:57]} 5. h4 {[%clk 0:02:49.2]}
5... h5 {[%clk 0:02:56.5]} 6. e3 {[%clk 0:02:45]} 6... O-O {[%clk 0:02:55.7]} 7.
Nf3 {[%clk 0:02:43.7]} 7... c5 {[%clk 0:02:40.1]} 8. dxc5 {[%clk 0:02:40.9]}
8... Nbd7 {[%clk 0:02:34.3]} 9. Bd3 {[%clk 0:02:03.9]} 9... Nxc5 {[%clk
0:02:28.3]} 10. O-O-O {[%clk 0:02:02.1]} 10... Bg4 {[%clk 0:02:19.1]} 11. Kb1
{[%clk 0:02:01.5]} 11... a6 {[%clk 0:02:13.6]} 12. Be5 {[%clk 0:01:23.2]} 12...
b5 {[%clk 0:01:50.2]} 13. a3 {[%clk 0:01:17.6]} 13... Rc8 {[%clk 0:01:23.5]} 14.
Qe2 {[%clk 0:01:01.9]} 14... Nxd3 {[%clk 0:01:20.9]} 15. cxd3 {[%clk 0:01:00.6]}
15... b4 {[%clk 0:01:19.7]} 16. axb4 {[%clk 0:00:59.9]} 16... Qb6 {[%clk
0:01:20.1]} 17. Bxf6 {[%clk 0:00:55.9]} 17... Qxf6 {[%clk 0:01:18.6]} 18. Nxd5
{[%clk 0:00:56]} 18... Qd6 {[%clk 0:01:16.3]} 19. e4 {[%clk 0:00:41.6]} 19...
Bd4 {[%clk 0:01:13.9]} 20. Rc1 {[%clk 0:00:33.2]} 20... e6 {[%clk 0:01:11.8]}
21. Ne3 {[%clk 0:00:22.1]} 21... Bxf3 {[%clk 0:01:10]} 22. gxf3 {[%clk
0:00:20.5]} 22... Qxb4 {[%clk 0:01:10.2]} 23. Rxc8 {[%clk 0:00:14.3]} 23... Rxc8
{[%clk 0:01:09.7]} 24. Nc4 {[%clk 0:00:12.6]} 24... a5 {[%clk 0:01:06.8]} 25.
Qc2 {[%clk 0:00:11.1]} 25... a4 {[%clk 0:01:06.2]} 26. Ka2 {[%clk 0:00:11.4]}
26... e5 {[%clk 0:00:57.4]} 27. Rg1 {[%clk 0:00:09.1]} 27... Rc5 {[%clk
0:00:53.9]} 28. Rg5 {[%clk 0:00:08.8]} 28... Kg7 {[%clk 0:00:48.2]} 29. f4
{[%clk 0:00:09]} 29... exf4 {[%clk 0:00:47.7]} 30. e5 {[%clk 0:00:07.3]} 30...
Rb5 {[%clk 0:00:38.4]} 31. e6 {[%clk 0:00:06.5]} 31... fxe6 {[%clk 0:00:35.7]}
32. Rxb5 {[%clk 0:00:05.5]} 32... Qxb5 {[%clk 0:00:35.7]} 33. Qe2 {[%clk
0:00:05.4]} 33... Qb3+ {[%clk 0:00:31.8]} 34. Kb1 {[%clk 0:00:03.4]} 34... e5
{[%clk 0:00:30.6]} 35. Qf3 {[%clk 0:00:03]} 35... a3 {[%clk 0:00:29.2]} 0-1

[Event "*** SCC Grand Prix: Titled Tuesday Blitz"]
[Site "Chess.com"]
[Date "2020.09.08"]
[Round "5"]
[White "Colombiano07"]
[Black "dragos420"]
[Result "0-1"]
[WhiteElo "2323"]
[BlackElo "2500"]
[TimeControl "180+1"]
[EndTime "10:56:19 PDT"]
[Termination "dragos420 won on time"]

1. d4 {[%clk 0:03:00.9]} 1... Nf6 {[%clk 0:02:58.6]} 2. Bf4 {[%clk 0:03:00.1]}
2... e6 {[%clk 0:02:57.6]} 3. e3 {[%clk 0:03:00.4]} 3... b6 {[%clk 0:02:54.9]}
4. Be2 {[%clk 0:03:00]} 4... Bb7 {[%clk 0:02:54.5]} 5. Bf3 {[%clk 0:03:00.6]}
5... Bxf3 {[%clk 0:02:53.9]} 6. Nxf3 {[%clk 0:02:52.2]} 6... d5 {[%clk
0:02:53.5]} 7. O-O {[%clk 0:02:51.4]} 7... Bd6 {[%clk 0:02:52.5]} 8. Bg5 {[%clk
0:02:48.7]} 8... O-O {[%clk 0:02:51.8]} 9. c4 {[%clk 0:02:28.1]} 9... c6 {[%clk
0:02:44.1]} 10. b3 {[%clk 0:02:13.7]} 10... h6 {[%clk 0:02:42.3]} 11. Bh4 {[%clk
0:02:11.6]} 11... Nbd7 {[%clk 0:02:41.8]} 12. Nc3 {[%clk 0:02:10.5]} 12... Rc8
{[%clk 0:02:38.8]} 13. e4 {[%clk 0:02:06.3]} 13... dxe4 {[%clk 0:02:36.9]} 14.
Nxe4 {[%clk 0:02:02.3]} 14... Be7 {[%clk 0:02:36.7]} 15. Nxf6+ {[%clk
0:01:57.3]} 15... Bxf6 {[%clk 0:02:30.6]} 16. Bg3 {[%clk 0:01:52.5]} 16... c5
{[%clk 0:02:27.7]} 17. Rc1 {[%clk 0:01:50.3]} 17... cxd4 {[%clk 0:02:25.3]} 18.
Nxd4 {[%clk 0:01:43.3]} 18... Nc5 {[%clk 0:02:25.6]} 19. Nb5 {[%clk 0:01:41.3]}
19... a6 {[%clk 0:02:23.7]} 20. Nd6 {[%clk 0:01:24.4]} 20... Rc6 {[%clk
0:02:19.4]} 21. Re1 {[%clk 0:01:16.1]} 21... Qd7 {[%clk 0:02:15.1]} 22. Ne4
{[%clk 0:01:08.6]} 22... Bd4 {[%clk 0:02:09.5]} 23. Nxc5 {[%clk 0:00:58.1]}
23... bxc5 {[%clk 0:02:09.1]} 24. Be5 {[%clk 0:00:55]} 24... Rd8 {[%clk
0:02:08.7]} 25. Qg4 {[%clk 0:00:50]} 25... Bxe5 {[%clk 0:01:53.4]} 26. Rxe5
{[%clk 0:00:45.6]} 26... Qd2 {[%clk 0:01:43.5]} 27. Ra1 {[%clk 0:00:27.7]} 27...
Rd4 {[%clk 0:01:23.4]} 28. Qe2 {[%clk 0:00:26.2]} 28... Qc3 {[%clk 0:01:13]} 29.
Rf1 {[%clk 0:00:22.9]} 29... Rd2 {[%clk 0:01:06.9]} 30. Qe4 {[%clk 0:00:20.8]}
30... Rxa2 {[%clk 0:00:55]} 31. Qxc6 {[%clk 0:00:08.9]} 31... Qxe5 {[%clk
0:00:54.7]} 32. Qe8+ {[%clk 0:00:09]} 32... Kh7 {[%clk 0:00:53.1]} 33. Qxf7
{[%clk 0:00:05.3]} 33... Rb2 {[%clk 0:00:52.2]} 34. Qf3 {[%clk 0:00:04.1]} 34...
Qd4 {[%clk 0:00:48.4]} 35. Re1 {[%clk 0:00:02.6]} 35... a5 {[%clk 0:00:43.8]}
36. h3 {[%clk 0:00:02]} 36... Rd2 {[%clk 0:00:42.7]} 37. Rxe6 {[%clk 0:00:01.5]}
37... Rd3 {[%clk 0:00:42.6]} 0-1